bitfinex-derivatives/quotes_ETHF0:USTF0_20250417
["timestamp","ask_amount","ask_price","bid_price","bid_amount"]
[1744915732326,1.24519,1606.4,1606.3,6.38619]
[1744915732528,5.50677743,1606.4,1606.3,6.38619]
[1744915732821,5.50677743,1606.4,1606.3,5.141]
[1744915733027,10.50677743,1606.4,1606.3,5.141]
[1744915733426,1.24519,1606.3,1606.2,0.075]
[1744915733727,1.24535,1606.1,1606.0,6.38637]
[1744915733923,1.24535,1606.1,1605.2,3.11496]
[1744915733924,3.11376,1605.9,1605.2,3.11496]
[1744915734120,3.2078,1605.4,1605.3,1.24597]
[1744915734427,0.49961183,1605.4,1605.3,1.24597]
[1744915734622,3.70741183,1605.4,1605.3,1.24597]
[1744915735015,4.26154251,1605.4,1605.2,1.32103]
[1744915735215,1.74558183,1605.3,1605.2,0.075]
[1744915735518,0.49961183,1605.3,1605.2,0.075]
[1744915735724,1.05374251,1605.3,1605.2,1.32105]
[1744915736226,0.55413068,1605.3,1605.2,3.28805]
[1744915736424,0.55413068,1605.3,1605.2,8.28805]
[1744915736729,3.2078,1605.6,1605.5,1.24578]
[1744915736924,5.69668103,1605.6,1605.5,6.38678]
[1744915737130,7.49573662,1605.6,1605.5,5.216]
[1744915737332,12.49573662,1605.6,1605.5,0.075]
[1744915737522,7.49573662,1605.6,1605.5,0.075]
[1744915738028,7.49573662,1605.6,1605.5,1.32081]
[1744915738530,7.49573662,1605.6,1605.5,0.075]
[1744915739816,7.49506974,1605.6,1605.5,0.075]
[1744915740021,12.49506974,1605.6,1605.5,0.075]
[1744915740818,7.49521479,1605.6,1605.5,0.075]
[1744915741021,7.49521479,1605.6,1605.5,1.32081]
[1744915741323,7.49523447,1605.6,1605.5,1.32081]
[1744915741530,6.24950447,1605.6,1605.5,1.32081]
[1744915741729,7.49523447,1605.6,1605.5,0.075]
[1744915742526,1.24588,1605.5,1605.4,5.252]
[1744915742816,2.95774599,1605.5,1605.4,6.49789]
[1744915743022,4.20355599,1605.5,1605.4,6.49789]
[1744915743223,4.20355599,1605.5,1605.4,6.57289]
[1744915743527,2.95774599,1605.5,1605.4,6.57289]
[1744915743729,3.70573559,1605.5,1605.4,6.57289]
[1744915744030,4.20321458,1605.5,1605.4,5.327]
[1744915744330,1.2462,1605.0,1604.9,6.49823]
[1744915744633,1.2462,1605.0,1604.1,1.24686]
[1744915744634,3.11574,1604.9,1604.1,1.24686]
[1744915744826,1.24693,1604.1,1603.8,2.0402]
[1744915745026,1.989,1604.0,1603.9,6.49906]
[1744915745221,6.44378,1604.0,1603.9,5.252]
[1744915745422,3.2078,1604.2,1603.9,11.49906]
[1744915745629,0.00932662,1604.7,1604.6,1.24651]
[1744915745836,0.00932662,1604.7,1604.6,6.49851]
[1744915746028,1.99832662,1604.7,1604.6,6.49851]
[1744915746223,0.00932662,1604.7,1604.6,6.49851]
[1744915746426,1.99832662,1604.7,1604.6,6.49851]
[1744915746633,20.50745067,1606.4,1605.4,3.2078]
[1744915746933,1.04696257,1606.1,1606.0,1.24542]
[1744915747235,4.25476257,1606.1,1606.0,0.075]
[1744915747426,12.48911257,1606.1,1606.0,0.075]
[1744915748034,12.48911257,1606.1,1605.5,5.51]
[1744915748035,11.24347016,1606.1,1605.5,5.51]
[1744915748328,3.2078,1605.7,1605.6,1.24569]
[1744915748529,3.2078,1605.7,1605.1,1.2461]
[1744915748726,6.32301,1605.2,1604.4,0.6232]
[1744915748928,3.2078,1605.1,1604.4,2.6445]
[1744915749229,0.00932662,1604.9,1604.7,1.24643]
[1744915749534,0.00932662,1604.9,1604.8,1.24636]
[1744915749730,3.21712662,1604.9,1604.4,0.075]
[1744915750328,3.2078,1604.7,1604.4,0.075]
[1744915750529,4.46344662,1604.9,1604.6,1.24648]
[1744915750826,0.00932662,1604.9,1604.6,1.24646]
[1744915751033,0.00932662,1604.9,1604.5,3.26785]
[1744915751223,1.87982662,1604.9,1604.5,1.32155]
[1744915751429,1.24639,1604.8,1604.5,1.32155]
[1744915751632,1.24651,1604.6,1604.5,0.075]
[1744915751832,1.8705,1604.7,1604.5,0.075]
[1744915752034,1.8705,1604.7,1604.6,1.24651]
[1744915752431,1.8705,1604.7,1604.5,1.32154]
[1744915752638,1.8705,1604.7,1604.5,0.075]
[1744915752933,2.21362662,1604.9,1604.6,1.24644]
[1744915752934,1.25560662,1604.9,1604.6,1.24644]
[1744915753129,3.12610662,1604.9,1604.7,3.11563]
[1744915753330,1.25565662,1604.9,1604.7,1.8692]
[1744915753637,1.8705,1604.8,1604.7,1.8692]
[1744915753934,1.24645,1604.7,1604.5,7.33756]
[1744915754131,0.00932662,1604.9,1604.7,1.24639]
[1744915754436,1.24651,1604.6,1604.5,0.075]
[1744915754636,4.45431,1604.6,1604.5,0.075]
[1744915754833,3.2078,1604.6,1604.5,5.075]
[1744915755133,1.24614,1605.1,1604.5,17.41515]
[1744915755339,1.24607,1605.2,1605.0,3.2078]
[1744915755938,13.53030062,1605.5,1605.1,1.24609]
[1744915755939,1.24599,1605.3,1605.1,1.24609]
[1744915756141,1.25531662,1605.3,1605.2,3.2078]
[1744915756539,1.25531662,1605.3,1605.0,3.2828]
[1744915756741,0.00932662,1605.3,1605.2,4.45385]
[1744915756937,1.25529662,1605.3,1605.2,3.2078]
[1744915757134,1.25529662,1605.3,1605.2,3.2828]
[1744915757630,0.00932662,1605.3,1605.2,5.06567338]
[1744915757933,1.24562,1605.8,1605.6,1.24569]
[1744915758139,19.7055166,1605.9,1605.7,4.45339]
[1744915758335,20.9510266,1605.9,1605.7,4.45339]
[1744915758537,20.9510866,1605.9,1605.7,3.2078]
[1744915758942,1.24558,1605.8,1605.7,3.2078]
[1744915759147,1.24558,1605.8,1605.7,3.2828]
[1744915759834,20.9510766,1605.9,1605.7,4.52845]
[1744915760035,2.2468,1605.8,1605.7,3.2828]
[1744915760236,3.49238,1605.8,1605.7,3.2828]
[1744915760437,2.2468,1605.8,1605.7,3.2828]
[1744915760640,2.2468,1605.8,1605.7,8.49753338]
[1744915760836,8.15271062,1606.6,1605.7,19.5991]
[1744915761042,8.15271062,1606.6,1606.2,3.2078]
[1744915761043,1.24524,1606.3,1606.2,3.2078]
[1744915761243,1.24524,1606.3,1606.2,5.394]
[1744915761535,1.24524,1606.3,1606.2,3.2078]
[1744915762543,3.50824,1606.3,1606.2,3.2078]
[1744915764248,1.24535,1606.1,1606.0,3.2078]
[1744915764546,1.24566,1605.7,1605.4,5.5052]
[1744915764751,1.24566,1605.7,1605.6,4.46285662]
[1744915764940,1.24566,1605.7,1605.6,3.21712662]
[1744915765142,1.24566,1605.7,1605.6,4.46285662]
[1744915765336,9.12839,1606.1,1605.6,4.99067338]
[1744915765545,1.24562,1605.8,1605.7,2.2974]
[1744915765849,2.1558,1606.0,1605.7,5.5052]
[1744915766050,1.24547,1606.0,1605.9,4.4533]
[1744915766245,6.7165,1606.2,1606.1,1.24535]
[1744915766453,6.7165,1606.2,1606.1,4.45315]
[1744915766454,3.50247,1606.2,1606.1,4.45315]
[1744915766655,8.16203724,1606.4,1606.3,1.24519]
[1744915766946,8.16203724,1606.4,1606.3,4.45299]
[1744915767144,8.16203724,1606.4,1606.3,6.22653676]
[1744915768445,9.40714724,1606.4,1606.3,3.2078]
[1744915768646,1.24535,1606.1,1606.0,3.2078]
[1744915768849,1.24535,1606.1,1606.0,4.45316]
[1744915769050,1.24535,1606.1,1606.0,3.2078]
[1744915769243,1.24535,1606.1,1606.0,4.45322]
[1744915769439,1.24535,1606.1,1606.0,3.2078]
[1744915769645,1.24535,1606.1,1606.0,4.98134676]
[1744915770151,1.24535,1606.1,1606.0,6.22676676]
[1744915770345,0.00932662,1606.4,1606.3,1.24519]
[1744915770650,0.00932662,1606.4,1606.3,4.45299]
[1744915770853,0.00932662,1606.4,1606.3,6.22653676]
[1744915773256,4.07948262,1606.9,1606.3,6.22653676]
[1744915773257,4.07948262,1606.9,1606.8,1.2448]
[1744915773452,2.70212924,1606.9,1606.8,4.4526]
[1744915773754,2.70212924,1606.9,1606.8,11.22614676]
[1744915773958,7.8164131,1607.2,1607.1,1.24457]
[1744915774145,9.0609031,1607.2,1607.1,9.2208]
[1744915774348,7.8164131,1607.2,1607.1,10.46537]
[1744915774548,7.8164131,1607.2,1607.1,12.62657]
[1744915775556,9.0609031,1607.2,1607.1,11.382]
[1744915775752,14.0609031,1607.2,1607.1,3.2078]
[1744915775958,1.24457,1607.1,1607.0,0.00932662]
[1744915776148,3.47857,1607.1,1607.0,0.00932662]
[1744915776350,8.47857,1607.1,1607.0,0.00932662]
[1744915778654,1.2448,1606.8,1606.7,3.2078]
[1744915779054,3.54249,1606.9,1606.8,1.2448]
[1744915779255,1.24479,1606.9,1606.8,1.2448]
[1744915780254,0.00932662,1607.3,1607.2,1.24449]
[1744915780562,0.00932662,1607.3,1607.2,7.25549]
[1744915780766,1.25374662,1607.3,1607.2,8.3113]
[1744915781961,3.42564662,1607.3,1607.2,9.55579]
[1744915782164,3.42564662,1607.3,1607.2,8.3113]
[1744915782553,3.42564662,1607.3,1607.2,9.55579]
[1744915783062,0.00932662,1607.3,1607.2,9.55579]
[1744915783265,1.25374662,1607.3,1607.2,9.55579]
[1744915783562,3.42564662,1607.3,1607.2,8.3113]
[1744915783956,3.42564662,1607.3,1607.2,9.55579]
[1744915785567,2.18122662,1607.3,1607.2,3.54479]
[1744915785765,1.25374662,1607.3,1607.2,1.24449]
[1744915785960,0.00932662,1607.3,1607.2,6.24449]
[1744915788862,0.00932662,1607.3,1607.2,8.57829]
[1744915789069,2.3258,1608.0,1607.9,1.24395]
[1744915789070,2.4143,1608.0,1607.9,1.24395]
[1744915789260,2.4143,1608.0,1607.9,10.54575]
[1744915789462,3.65818,1608.0,1607.9,9.3018]
[1744915789969,3.65818,1608.0,1607.9,10.54575]
[1744915790176,6.12548797,1608.1,1608.0,1.24388]
[1744915790366,8.53978797,1608.1,1608.0,3.57768]
[1744915791058,2.42362662,1608.1,1608.0,3.57768]
[1744915791259,0.00932662,1608.1,1608.0,3.57768]
[1744915792366,0.00932662,1608.1,1607.9,10.54569]
[1744915792566,2.35942662,1608.1,1607.9,9.3018]
[1744915792869,3.60327662,1608.1,1608.0,1.24388]
[1744915793565,1.24388,1608.0,1607.9,12.88228]
[1744915793766,3.51658,1608.0,1607.9,12.88228]
[1744915794060,0.00932662,1608.1,1608.0,1.24388]
[1744915794265,0.00932662,1608.1,1608.0,8.41108]
[1744915794470,1.25312662,1608.1,1608.0,1.24388]
[1744915794660,3.52582662,1608.1,1608.0,1.24388]
[1744915794969,2.28202662,1608.1,1608.0,1.24388]
[1744915795561,2.28202662,1608.1,1608.0,3.58048]
[1744915795765,0.00932662,1608.1,1608.0,3.58048]
[1744915797365,3.2078,1609.0,1608.0,7.3366]
[1744915797679,3.6547,1608.7,1608.6,1.24341]
[1744915799665,2.4113,1608.7,1608.6,1.24341]
[1744915801372,8.65311,1608.6,1608.5,0.00932662]
[1744915801672,11.86091,1608.6,1608.5,0.00932662]
[1744915802870,10.6175,1608.6,1607.6,5.902]
[1744915803066,1.24414,1607.7,1607.6,1.24416]
[1744915803267,3.10982,1608.0,1607.4,16.08395]
[1744915803472,2.4002,1607.9,1607.6,1.24414]
[1744915803770,1.24412,1607.7,1607.6,3.54364]
[1744915804073,0.00932662,1607.8,1607.7,1.24411]
[1744915804369,0.00932662,1607.8,1607.7,6.75141]
[1744915804571,0.00932662,1607.8,1607.7,11.75141]
[1744915804967,0.00932662,1607.8,1607.7,6.75141]
[1744915805574,0.00932662,1607.8,1607.5,3.21712662]
[1744915805768,1.24412,1607.7,1607.6,1.24413]
[1744915805973,1.24419,1607.6,1607.5,6.75196662]
[1744915806173,3.53039,1607.6,1607.5,6.75196662]
[1744915806374,0.00932662,1607.8,1607.7,1.24411]
[1744915806668,0.00932662,1607.8,1607.7,4.45191]
[1744915807472,0.00932662,1607.8,1607.7,7.33511]
[1744915807875,2.29552662,1607.8,1607.7,10.54291]
[1744915808270,3.53955662,1607.8,1607.7,7.33511]
[1744915808465,1.24419,1607.6,1607.5,0.00932662]
[1744915808771,4.45199,1607.6,1607.5,0.00932662]
[1744915809069,3.11088,1607.4,1607.0,8.5047]
[1744915809374,3.11068,1607.5,1607.1,1.24452]
[1744915809375,1.24452,1607.2,1607.1,1.24452]
[1744915809776,1.24448,1607.3,1607.2,1.24449]
[1744915809964,7.93568,1607.5,1607.1,0.00932662]
[1744915809965,3.11091,1607.4,1607.1,0.00932662]
[1744915810168,2.4008,1607.5,1607.1,3.21712662]
[1744915810375,3.66856,1607.4,1607.3,1.24442]
[1744915810874,3.66856,1607.4,1607.3,3.2078]
[1744915811073,3.2078,1607.7,1607.3,3.2078]
[1744915811277,9.38449767,1607.8,1607.7,1.24411]
[1744915811570,9.38444767,1607.8,1607.7,1.24411]
[1744915811776,9.38448767,1607.8,1607.7,1.24411]
[1744915811972,1.24411,1607.7,1607.6,3.9106133]
[1744915812178,3.11063,1607.6,1607.2,6.81207]
[1744915812472,1.24442,1607.3,1607.2,1.24449]
[1744915812664,1.24442,1607.3,1607.2,4.45229]
[1744915812860,7.88739,1607.5,1607.2,4.45229]
[1744915813062,1.24448,1607.3,1607.1,9.46983662]
[1744915813274,2.4355,1607.5,1607.4,1.24434]
[1744915813672,1.24417,1607.7,1607.6,1.24419]
[1744915814072,0.00932662,1607.8,1607.4,3.2078]
[1744915814272,1.24416,1607.7,1607.6,1.24417]
[1744915814779,1.24419,1607.6,1607.5,1.2442]
[1744915814969,3.68349,1607.6,1607.5,1.2442]
[1744915815376,3.68349,1607.6,1607.5,1.24426]
[1744915815875,2.4393,1607.6,1607.5,1.24426]
[1744915816080,3.68349,1607.6,1607.5,1.24426]
[1744915816572,2.4393,1607.6,1607.5,7.15826]
[1744915816773,1.25338662,1607.8,1607.7,1.24411]
[1744915817172,0.00932662,1607.8,1607.7,1.24411]
[1744915817370,0.00932662,1607.8,1607.7,3.67611]
[1744915817576,2.44862662,1607.8,1607.7,3.67611]
[1744915817972,3.69265662,1607.8,1607.7,3.67611]
[1744915818369,1.24411,1607.7,1607.5,5.914]
[1744915818573,2.3161,1607.6,1607.5,1.18968915]
[1744915818773,3.56029,1607.6,1607.5,2.43390915]
[1744915819080,3.56029,1607.6,1607.5,4.86040915]
[1744915819274,1.24426,1607.5,1607.4,3.54488]
[1744915819473,1.24434,1607.4,1607.3,5.914]
[1744915820974,1.24449,1607.2,1607.1,1.25386662]
[1744915821172,1.24449,1607.2,1607.1,0.00932662]
[1744915821373,1.24449,1607.2,1607.1,1.25389662]
[1744915821772,3.55286,1607.3,1607.1,0.00932662]
[1744915822070,2.3084,1607.3,1607.1,0.00932662]
[1744915822380,1.24449,1607.2,1607.1,0.00932662]
[1744915822768,2.3084,1607.2,1607.1,1.25389662]
[1744915822970,3.55289,1607.2,1607.1,3.50349662]
[1744915823168,3.55289,1607.2,1607.1,0.00932662]
[1744915823369,8.55289,1607.2,1607.1,0.00932662]
[1744915823571,1.24479,1606.9,1606.7,8.1636]
[1744915823775,2.2641,1607.2,1606.7,9.40848]
[1744915823977,2.3166,1607.0,1606.9,1.2447]
[1744915824379,3.56131,1607.0,1606.9,1.2447]
[1744915824583,2.3166,1607.0,1606.7,14.4836]
[1744915824781,1.24479,1606.9,1606.8,1.25410662]
[1744915825380,3.56129,1607.0,1606.9,1.24473]
[1744915826081,2.3166,1607.0,1606.9,1.24473]
[1744915826276,2.3166,1607.0,1606.9,3.56283]
[1744915826682,0.00932662,1607.1,1607.0,1.24465]
[1744915826880,0.00932662,1607.1,1607.0,12.68555]
[1744915827077,0.00932662,1607.1,1607.0,9.47775]
[1744915827275,0.00932662,1607.1,1607.0,12.68555]
[1744915829476,0.00932662,1607.1,1607.0,9.47775]
[1744915829678,1.25389662,1607.1,1607.0,7.15965]
[1744915829878,1.24473,1606.9,1606.8,3.59510662]
[1744915830378,1.24473,1606.9,1606.8,0.00932662]
[1744915830573,1.24473,1606.9,1606.8,1.25412662]
[1744915831887,3.48819,1607.0,1606.9,1.24473]
[1744915832278,3.4882,1607.0,1606.9,1.24473]
[1744915833286,1.24473,1606.9,1606.8,3.49688662]
[1744915833486,3.67883,1606.9,1606.8,3.49688662]
[1744915833987,3.67883,1606.9,1606.8,0.00932662]
[1744915834486,3.67883,1606.9,1606.8,1.25412662]
[1744915835284,2.4341,1606.9,1606.8,1.25412662]
[1744915836379,2.4341,1606.9,1606.8,4.46192662]
[1744915836584,1.24468,1607.0,1606.9,1.24473]
[1744915836778,1.24468,1607.0,1606.9,3.56363]
[1744915836974,1.24473,1606.9,1606.8,4.46187662]
[1744915837181,1.2447,1607.0,1606.9,1.24473]
[1744915837476,3.5767,1607.0,1606.9,2.3189]
[1744915837683,3.5767,1607.0,1606.9,3.56363]
[1744915839286,1.24473,1606.9,1606.8,4.46187662]
[1744915839489,0.00932662,1607.1,1607.0,1.24465]
[1744915839676,0.00932662,1607.1,1607.0,6.90065]
[1744915839882,1.24467,1607.0,1606.9,1.24466]
[1744915840187,1.24473,1606.9,1606.8,0.00932662]
[1744915841785,3.54773,1606.9,1606.8,0.00932662]
[1744915842682,3.54773,1606.9,1606.8,6.91112662]
[1744915843393,2.303,1606.9,1606.8,6.91112662]
[1744915843580,0.00932662,1607.1,1606.8,5.66632662]
[1744915843891,1.24465,1607.0,1606.9,2.3111]
[1744915844096,3.50245,1607.0,1606.9,2.3111]
[1744915844590,1.24473,1606.9,1606.8,5.66632662]
[1744915844891,3.50253,1606.9,1606.8,5.66632662]
[1744915846892,3.50253,1606.9,1606.8,0.90490825]
[1744915849584,8.25403,1606.9,1606.8,0.90490825]
[1744915849788,1.2448,1606.8,1606.7,0.00932662]
[1744915850089,1.24511,1606.4,1606.3,1.24514]
[1744915850383,1.24509,1606.5,1606.3,5.44969]
[1744915850587,1.24509,1606.5,1606.4,3.58175]
[1744915850787,1.24509,1606.5,1606.4,6.78955]
[1744915851095,3.69831,1606.6,1606.5,1.24504]
[1744915851297,3.69831,1606.6,1606.5,3.58174]
[1744915851488,2.4533,1606.6,1606.5,3.58174]
[1744915851683,1.24495,1606.7,1606.6,1.24496]
[1744915851884,3.55012,1606.8,1606.7,1.24488]
[1744915852084,3.55012,1606.8,1606.7,2.4369]
[1744915852382,9.43142,1607.0,1606.7,2.4369]
[1744915852383,1.24472,1607.0,1606.7,2.4369]
[1744915852585,2.3053,1607.0,1606.8,5.657]
[1744915852786,1.24473,1606.9,1606.8,6.90176]
[1744915853183,1.24473,1606.9,1606.8,6.9018]
[1744915853484,1.24496,1606.6,1606.5,8.1727]
[1744915853684,1.24496,1606.6,1606.5,5.657]
[1744915853979,1.24496,1606.6,1606.5,8.8648]
[1744915854185,1.24496,1606.6,1606.5,5.657]
[1744915854695,3.76726,1606.6,1606.5,5.657]
[1744915854887,6.97506,1606.6,1606.5,5.657]
[1744915855087,3.76726,1606.6,1606.5,5.657]
[1744915855288,1.24519,1606.3,1606.2,6.90221]
[1744915855986,1.24519,1606.3,1606.2,9.42511]
[1744915856587,3.76747,1606.4,1606.3,1.24519]
[1744915856783,1.24506,1606.5,1606.4,1.24511]
[1744915856984,1.24527,1606.3,1606.2,1.24523]
[1744915857585,1.24527,1606.3,1606.2,3.67383]
[1744915858287,3.76737,1606.5,1606.4,1.24511]
[1744915858688,3.76737,1606.5,1606.4,6.90211]
[1744915859294,2.5223,1606.5,1606.4,9.33071]
[1744915859494,3.76734,1606.5,1606.4,6.90211]
[1744915861096,3.76734,1606.5,1606.4,5.657]
[1744915861300,6.97514,1606.5,1606.4,5.657]
[1744915862190,3.76734,1606.5,1606.4,5.657]
[1744915862591,6.97514,1606.5,1606.4,5.657]
[1744915863202,3.76734,1606.5,1606.4,5.657]
[1744915863500,3.76734,1606.5,1606.4,6.90211]
[1744915863694,3.76734,1606.5,1606.4,10.10991]
[1744915863896,3.76734,1606.5,1606.4,5.657]
[1744915864598,3.76734,1606.5,1606.4,6.90211]
[1744915864792,3.76734,1606.5,1606.4,5.657]
[1744915864992,3.76734,1606.5,1606.4,6.90211]
[1744915865803,3.76734,1606.5,1606.4,5.657]
[1744915867288,3.76734,1606.5,1605.8,3.2078]
[1744915867289,3.11301,1606.3,1605.3,3.2078]
[1744915867595,1.24581,1605.5,1605.4,5.396]
[1744915868496,3.56621,1605.5,1605.4,5.396]
[1744915868695,2.3204,1605.5,1605.4,6.64189]
[1744915868897,3.12293662,1606.0,1605.6,1.24573]
[1744915869095,1.24581,1605.5,1605.4,5.396]
[1744915869299,1.24581,1605.5,1605.2,25.50427687]
[1744915869300,1.24597,1605.3,1605.2,20.69167687]
[1744915869988,3.61307,1605.3,1605.2,20.69167687]
[1744915870692,3.61307,1605.3,1605.1,6.6431]
[1744915870693,1.24605,1605.2,1605.1,6.6431]
[1744915870900,3.61315,1605.2,1605.1,5.397]
[1744915871095,2.3671,1605.2,1604.9,4.45401]
[1744915871295,3.61315,1605.2,1605.1,1.24612]
[1744915871495,1.24612,1605.1,1605.0,2.4489]
[1744915871695,3.61322,1605.1,1605.0,3.6951]
[1744915871898,2.3671,1605.1,1605.0,3.6951]
[1744915872201,2.4665,1605.4,1605.1,1.24612]
[1744915872401,1.24605,1605.2,1605.1,6.64412]
[1744915872708,3.61313,1605.3,1605.1,6.64405]
[1744915872899,2.3671,1605.3,1605.2,1.24605]
[1744915873099,3.61307,1605.3,1605.2,2.3398]
[1744915873290,3.61307,1605.3,1605.2,3.58585]
[1744915873495,5.60688,1605.7,1605.4,1.24585]
[1744915873496,2.4927,1605.7,1605.4,1.24585]
[1744915873696,2.5565,1605.6,1605.5,1.24581]
[1744915873998,1.24569,1605.7,1605.5,1.24581]
[1744915873999,9.37676105,1605.7,1605.6,1.24573]
[1744915874193,3.11434,1605.6,1605.1,94.9388]
[1744915874395,3.80237,1605.5,1605.4,1.24589]
[1744915874604,2.5565,1605.5,1605.4,1.24589]
[1744915874803,1.24579,1605.6,1605.5,1.24581]
[1744915875003,3.80229,1605.6,1605.5,2.3398]
[1744915875202,3.80229,1605.6,1605.5,3.58561]
[1744915875505,1.24581,1605.5,1605.4,5.398]
[1744915875704,3.66381,1605.5,1605.4,5.398]
[1744915876003,3.11487,1605.4,1605.0,1.24613]
[1744915876302,9.34594,1605.1,1604.3,3.11687]
[1744915876496,1.24648,1604.7,1604.5,1.24653]
[1744915876702,1.24648,1604.7,1604.6,3.71201]
[1744915877096,3.66442,1604.8,1604.6,2.4655]
[1744915877302,1.24643,1604.7,1604.6,3.71199]
[1744915877804,2.418,1604.8,1604.6,3.71199]
[1744915877992,1.24643,1604.7,1604.6,3.71199]
[1744915878197,1.24643,1604.7,1604.6,9.11099]
[1744915878407,2.418,1604.7,1604.6,9.11099]
[1744915878703,3.66443,1604.7,1604.6,5.399]
[1744915879205,3.2078,1604.8,1604.6,6.64544]
[1744915879406,2.3906,1604.7,1604.6,3.59114]
[1744915879607,2.3906,1604.7,1604.6,8.99114]
[1744915879807,2.3906,1604.7,1604.6,3.59114]
[1744915880005,3.2078,1604.8,1604.7,1.24643]
[1744915880209,6.84476,1604.8,1604.7,1.24643]
[1744915880504,2.3906,1604.8,1604.7,1.24643]
[1744915880902,2.3906,1604.8,1604.7,3.59113]
[1744915881105,2.3906,1604.8,1604.6,1.04415698]
[1744915881305,0.00932662,1604.9,1604.8,1.24636]
[1744915881810,0.00932662,1604.9,1604.8,6.24636]
[1744915882512,0.00932662,1604.9,1604.8,1.24636]
[1744915883107,0.00932662,1604.9,1604.8,6.24636]
[1744915884212,0.00932662,1604.9,1604.8,6.50376]
[1744915886105,0.00932662,1604.9,1604.8,1.24636]
[1744915888908,0.00932662,1604.9,1604.8,1.50316]
[1744915889110,0.00932662,1604.9,1604.8,1.24636]
[1744915889604,8.21712662,1604.9,1604.2,89.5458]
[1744915889814,1.24659,1604.5,1604.4,1.24658]
[1744915890012,1.24657,1604.6,1604.5,1.24654]
[1744915890210,1.24664,1604.5,1604.4,1.24662]
[1744915890415,6.86694,1604.5,1604.4,1.24662]
[1744915891408,1.24667,1604.4,1604.3,6.6477]
[1744915891605,3.73307,1604.4,1604.3,6.6477]
[1744915891809,2.4864,1604.4,1604.3,6.6477]
[1744915893119,3.73307,1604.4,1604.3,6.64774]
[1744915894013,6.19507,1604.4,1604.3,6.64774]
[1744915895225,2.4864,1604.4,1604.3,9.85554]
[1744915895416,2.4864,1604.4,1604.3,10.11274]
[1744915895718,2.3438,1604.8,1604.7,1.24643]
[1744915895917,2.3438,1604.8,1604.7,6.64743]
[1744915896118,3.59016,1604.8,1604.7,6.64743]
[1744915896514,2.3438,1604.8,1604.7,6.64743]
[1744915896719,2.3161,1604.8,1604.7,6.64743]
[1744915897410,3.56246,1604.8,1604.7,6.64743]
[1744915897605,3.56246,1604.8,1604.7,5.401]
[1744915897606,8.56246,1604.8,1604.7,5.401]
[1744915897810,1.24662,1604.5,1604.4,1.24659]
[1744915898016,1.24663,1604.5,1604.4,1.2466]
[1744915898218,3.57477,1604.6,1604.5,1.24659]
[1744915898410,1.24657,1604.6,1604.5,1.24659]
[1744915898613,1.24657,1604.6,1604.5,1.24653]
[1744915899120,3.62541,1604.6,1604.5,1.24653]
[1744915901713,1.2466,1604.5,1604.4,1.2466]
[1744915902216,2.3789,1604.6,1604.1,3.2078]
[1744915902412,3.11749,1604.0,1603.3,12.0256]
[1744915902608,1.24716,1603.8,1603.6,1.24726]
[1744915902822,1.25651662,1603.8,1603.6,1.24726]
[1744915903020,4.46431662,1603.8,1603.6,1.24726]
[1744915903526,1.24722,1603.7,1603.3,12.0256]
[1744915903718,0.00932662,1603.8,1603.5,3.2078]
[1744915903926,0.00932662,1603.8,1603.7,1.24721]
[1744915904719,0.00932662,1603.8,1603.7,2.96281]
[1744915905516,0.00932662,1603.8,1603.7,1.24721]
[1744915906315,0.00932662,1603.8,1603.7,2.96281]
[1744915907023,0.00932662,1603.8,1603.6,7.7763]
[1744915907211,3.21712662,1603.8,1603.7,5.444]
[1744915907415,1.25645662,1603.8,1603.7,5.444]
[1744915907615,1.24728,1603.7,1603.6,1.24729]
[1744915907815,1.24728,1603.7,1603.6,6.69129]
[1744915908123,1.25650662,1603.8,1603.7,1.24721]
[1744915908324,1.24721,1603.7,1603.6,1.92107178]
[1744915909216,1.24721,1603.7,1603.6,0.67378178]
[1744915909918,1.24744,1603.4,1603.3,4.45528]
[1744915910110,1.24744,1603.4,1603.3,6.69148]
[1744915910320,1.24744,1603.4,1603.3,5.444]
[1744915910818,1.24776,1603.0,1602.9,6.69176]
[1744915911021,1.24775,1603.1,1603.0,1.24773]
[1744915911218,6.32679,1603.3,1602.9,5.444]
[1744915911524,6.04076,1603.4,1603.3,1.24752]
[1744915911722,3.2078,1603.5,1603.3,1.24752]
[1744915911723,1.24739,1603.5,1603.4,1.24737]
[1744915912118,1.24733,1603.6,1603.5,1.24732]
[1744915912317,1.24739,1603.5,1603.4,1.24738]
[1744915912519,4.45519,1603.5,1603.4,1.24738]
[1744915912714,3.2078,1603.5,1603.4,1.24738]
[1744915912919,2.4313,1603.6,1603.5,1.24737]
[1744915913119,3.67859,1603.6,1603.5,1.24737]
[1744915914128,6.88639,1603.6,1603.5,1.24737]
[1744915914529,1.24742,1603.5,1603.4,1.24739]
[1744915914828,1.24741,1603.5,1603.4,1.24738]
[1744915915829,4.45514,1603.6,1603.5,1.24737]
[1744915916126,1.2474,1603.5,1603.4,1.24738]
[1744915916325,3.2078,1603.6,1603.4,1.24738]
[1744915916524,1.24742,1603.5,1603.4,1.24742]
[1744915917225,2.3828,1603.7,1603.6,1.24729]
[1744915917526,3.63001,1603.7,1603.6,6.69329]
[1744915918031,2.3828,1603.7,1603.6,6.69329]
[1744915918327,3.21712662,1603.8,1603.7,1.24721]
[1744915918523,3.21712662,1603.8,1603.7,2.96311]
[1744915919022,3.2078,1604.1,1604.0,1.24698]
[1744915919221,10.18981853,1604.2,1604.1,1.2469]
[1744915919522,10.18981853,1604.2,1604.1,3.734]
[1744915919725,10.18981853,1604.2,1604.1,12.8499]
[1744915921023,8.90460529,1604.2,1604.1,12.8499]
[1744915921730,8.14044763,1604.3,1604.2,1.24682]
[1744915921930,8.14044763,1604.3,1604.2,2.96272]